Cogmind - Beta 16 @@@ ROGUE MODE // 2025.11.22 @ 10:34:11 Player: tthaar Result: Destroyed by G-47 Trooper with Particle Gun Performance ------------- Evolutions (0) 0 Regions Visited (2) 400 Robots Destroyed (30) 150 Value Destroyed (492) 492 Prototype IDs (0) 0 Alien Tech Used (0) 0 Bonus (0) 0 TOTAL SCORE: 1042 Bonus ------- None Cogmind --------- Core Integrity 0/250 Matter 233/300 Energy 250/250 System Corruption 0% Temperature Warning (363) Movement Walking (260) Ox2 Location -10/Mines Parts ------- > --- POWER (1) -------- Ion Engine > --- PROPULSION (2) --- Aluminum Leg > --- UTILITY (2) ------ Large Storage Unit Light Armor Plating > --- WEAPON (2) ------- (None) > --- INVENTORY (15) --- Aluminum Leg Heat Sink Small Storage Unit Medium Storage Unit Medium Matter Pod (78) Visual Processing Unit Seismic Detector Grenade Launcher Mining Claw Peak State ------------ > --- POWER ------------ Ion Engine > --- PROPULSION ------- Light Treads Light Treads > --- UTILITY ---------- Large Storage Unit Light Armor Plating > --- WEAPON ----------- Particle Gun Assault Rifle > --- INVENTORY -------- Ion Engine Aluminum Leg Aluminum Leg Heat Sink Small Storage Unit Medium Storage Unit Medium Matter Pod Visual Processing Unit Seismic Detector Grenade Launcher Mining Claw [Rating: 9] Favorites ----------- Power Ion Engine Engine Ion Engine Propulsion Light Treads Treads Light Treads Leg Aluminum Leg Utility Large Storage Unit Device Seismic Detector Storage Large Storage Unit Protection Light Armor Plating Weapon Assault Rifle Energy Gun Particle Gun Ballistic Gun Assault Rifle Launcher Grenade Launcher Build | -11 -10 -10 ------- Run | Yrd Mat Min Slots Evolved . | . . . Power . | . . . Propulsion . | . . . Utility . | . . . Weapon . | . . . Parts Attached 19 | 7 12 . Power 3 | 1 2 . Engine 3 | 1 2 . Core . | . . . Reactor . | . . . Propulsion 5 | 2 3 . Treads 3 | 2 1 . Leg 2 | . 2 . Wheel . | . . . Hover . | . . . Flight . | . . . Utility 6 | 2 4 . Device 1 | 1 . . Storage 3 | 1 2 . Processor . | . . . Hackware . | . . . Protection 2 | . 2 . Artifact . | . . . Weapon 5 | 2 3 . Energy Gun 2 | . 2 . Energy Cannon . | . . . Ballistic Gun 2 | 2 . . Ballistic Cannon . | . . . Launcher 1 | . 1 . Special Weapon . | . . . Impact Weapon . | . . . Slashing Weapon . | . . . Piercing Weapon . | . . . Special Melee Weapon . | . . . Unidentified Prototypes . | . . . Parts Lost 10 | . 7 3 Power 2 | . 2 . Propulsion 3 | . 2 1 Utility 1 | . 1 . Weapon 4 | . 2 2 Highest Loss Streak 4 | . 4 3 To Critical Strikes . | . . . Average Backups 7 | 2 7 9 Power . | . . . Propulsion 1 | 1 1 1 Utility 3 | . 3 6 Weapon 1 | . 1 2 Tool/Special . | . . . Unused Backups 6 | . 2 4 Power . | . . . Propulsion . | . . . Utility 4 | . 1 3 Weapon 2 | . 1 1 Tool/Special . | . . . Average Slot Usage (%) 96 | . 96 88 Engine 13 | . 13 14 Treads 21 | . 22 . Leg 6 | . 5 25 Device 2 | . 3 . Storage 14 | . 14 14 Protection 9 | . 8 14 Energy Gun 6 | . 5 19 Ballistic Gun 18 | . 19 . Launcher 2 | . 2 . Peak Build Rating 9 | 7 9 9 Average Rating 7 | 5 7 8 On Entrance 5 | . 7 9 Avg Prop Armor Cover (%) 11 | . 11 . Naked Turns . | . . . Heaviest Build 34 | 15 34 32 Greatest Support 40 | 40 40 20 Greatest Overweight (x) 2 | 2 1 2 Average Overweight (x) . | . . 1 Largest Inventory Capacity 15 | 8 15 15 Average Capacity 12 | 7 12 15 Most Carried 12 | 4 12 9 Average Carried 7 | 3 7 9 Final Capacity 15 | 8 15 15 Final Carried 9 | 4 9 9 Class Distribution -------------------- 100% | Mutant Dominant Class ---------------- Mutant | -10/Materials Mutant | -10/Mines Resources | -11 -10 -10 ----------- Run | Yrd Mat Min Matter Collected 819 | 181 638 . Remotely . | . . . Salvage Created 642 | 48 594 . Parts 54 | 3 51 . Haulers Intercepted 1 | . 1 . Recyclers Shooed 1 | . 1 . Parts Field Recycled . | . . . Retrieved Matter . | . . . Parts Self-Destructed . | . . . Prevented . | . . . Parts Restored . | . . . Kills | -11 -10 -10 ------- Run | Yrd Mat Min Combat Hostiles Destroyed 18 | . 18 . Guns 13 | . 13 . AOE 5 | . 5 . Classes Destroyed 8 | 1 7 . Worker 3 | . 3 . Builder 4 | . 4 . Tunneler 2 | 2 . . Hauler 1 | . 1 . Watcher 2 | . 2 . Swarmer 9 | . 9 . Grunt 7 | . 7 . Subdweller 2 | . 2 . Best Kill Streak 6 | 1 6 . Combat Bots Only 3 | . 3 . Max Kills in Single Turn 3 | 1 3 . Gunslinging . | . . . Exploded 1 | . 1 . Melee . | . . . Uniques/NPCs Destroyed . | . . . Combat | -11 -10 -10 -------- Run | Yrd Mat Min Hostile Shots Fired 136 | . 101 35 Missed 21 | . 18 3 Hits 115 | . 83 32 Projectile 115 | . 83 32 Critical Strikes 1 | . . 1 Damage Taken 1499 | . 1073 426 Core 254 | . 163 91 Absorbed by Shields . | . . . Core Remaining (%) 100 | 100 . . Volleys Fired 73 | 2 64 7 Largest 2 | 2 2 2 Hottest 105 | 40 95 105 Shots Fired 136 | 4 118 14 Gun 123 | 4 105 14 Cannon . | . . . Launcher 13 | . 13 . Special . | . . . Kinetic 82 | 4 78 . Thermal 41 | . 27 14 Explosive 13 | . 13 . Electromagnetic . | . . . Robot Hit Streak 11 | 2 11 7 Robot Miss Streak 4 | . 4 4 Penetration Max . | . . . Secondary Targets 1 | . 1 . Max Gunslinging Chain 1 | . 1 . Shots Hit Robots 95 | 2 85 8 Core Hits 46 | 2 42 2 Critical Kills . | . . . Critical Parts Destroyed 1 | . 1 . Critical Strikes 1 | . 1 . Destroy 1 | . 1 . Melee Attacks . | . . . Impact . | . . . Slashing . | . . . Piercing . | . . . Sneak Attacks . | . . . Combat Hostiles . | . . . Follow-up Attacks . | . . . Damage Inflicted 2121 | 27 1986 108 Guns 1146 | 27 1011 108 Cannons . | . . . Explosions 972 | . 972 . Melee . | . . . Ramming 3 | . 3 . Kinetic 741 | 27 714 . Thermal 405 | . 297 108 Explosive 972 | . 972 . Electromagnetic . | . . . Impact . | . . . Slashing . | . . . Piercing . | . . . Highest Corruption . | . . . Average Corruption . | . . . Corruption Purged . | . . . Corruption Blocked . | . . . Overload Shots . | . . . Overflow Damage 46 | . 46 . Projectiles . | . . . Explosions 46 | . 46 . Melee . | . . . Knockbacks . | . . . Impact . | . . . Kinetic . | . . . Secondary . | . . . Self-Inflicted Damage 107 | . 107 . Shots 9 | . 9 . Rammed 1 | . 1 . Targets Rammed 1 | . 1 . Kicked . | . . . Crushed . | . . . Highest Temperature 552 | . 525 552 Average Temperature 193 | . 152 351 Received Heat Transfer 480 | . 225 255 Effects 11 | . 5 6 Shutdowns 3 | . 2 1 Interference 2 | . . 2 Matter Decay 1 | . . 1 Short Circuit 2 | . 2 . Damage (minor) 2 | . 1 1 Damage (major) 1 | . . 1 Siege Activations . | . . . Martial Activations . | . . . Shielding Activations . | . . . Robots Disrupted . | . . . Combat Hostiles . | . . . Robots Corrupted . | . . . Combat Hostiles . | . . . Parts Fried . | . . . Impact Corruptions . | . . . Robots Melted . | . . . Combat Hostiles . | . . . Parts Melted 2 | . 2 . Heat Transferred 951 | . 703 248 Parts Sabotaged . | . . . Parts Stolen . | . . . Parts Stripped . | . . . Power Chain Reactions . | . . . Alert | -11 -10 -10 ------- Run | Yrd Mat Min Maximum Alert Level . | . . . Low Security (%) 100 | 100 100 100 Level 1 . | . . . Level 2 . | . . . Level 3 . | . . . Level 4 . | . . . Level 5 . | . . . High Security . | . . . Max Security . | . . . Peak Influence 93 | 5 93 12 Initial 12 | . . 12 Average 25 | . 28 6 Influence Increases 558 | 10 548 . Destroy 0b10 Robot/C 320 | . 320 . Destroy 0b10 Robot/NC 60 | 10 50 . Destroy Leader 76 | . 76 . Successful Hack 21 | . 21 . Destroy Structure 66 | . 66 . Lose Combat Pursuer 15 | . 15 . Influence Decreases 558 | 10 515 33 Entered New Map 21 | . . 21 Time Decay 374 | 10 354 10 Lost Part 72 | . 70 2 Purge Threat 91 | . 91 . Squads Dispatched 3 | . 3 . Investigation 2 | . 2 . Extermination . | . . . Reinforcement 1 | . 1 . Assault . | . . . Garrison . | . . . Intercept . | . . . Searches Triggered . | . . . Construction Impeded . | . . . Haulers Reinforced . | . . . Active Scanning Responses . | . . . Cargo Convoy Interrupts . | . . . Stealth | -11 -10 -10 --------- Run | Yrd Mat Min Distress Signals . | . . . Communications Jammed . | . . . Distress Signals . | . . . Times Spotted 29 | . 25 4 Peak Tracking Total 4 | . 4 4 Tactical Retreats 1 | . 1 . Traps | -11 -10 -10 ------- Run | Yrd Mat Min Traps Triggered 2 | . 2 . Indirectly . | . . . Trap Hack Attempts . | . . . Triggered . | . . . Disarmed . | . . . Reprogrammed . | . . . Reused . | . . . Traps Extracted . | . . . Installed . | . . . Triggered . | . . . Machines | -11 -10 -10 ---------- Run | Yrd Mat Min Machines Disabled . | . . . Max in Single Turn . | . . . Machines Repaired . | . . . Machines Dismantled . | . . . Machines Sabotaged . | . . . Overloaded Fab Kills . | . . . Hacking | -11 -10 -10 --------- Run | Yrd Mat Min Machines Accessed 6 | . 6 . Terminals 5 | . 5 . Fabricators . | . . . Repair Stations 1 | . 1 . Recycling Units . | . . . Scanalyzers . | . . . Garrison Access . | . . . Total Hacks 24 | . 24 . Successful 9 | . 9 . Failed 15 | . 15 . Catastrophic 3 | . 3 . Database Lockouts . | . . . Manual 13 | . 13 . Terminals 19 | . 19 . Fabricators . | . . . Repair Stations 5 | . 5 . Recycling Units . | . . . Scanalyzers . | . . . Garrison Access . | . . . Terminal Hacks 6 | . 6 . Robot Analysis 1 | . 1 . Terminal Index 1 | . 1 . Unreport Threat 1 | . 1 . Locate Traps 1 | . 1 . Recall Investigation 1 | . 1 . Hauler Manifests 1 | . 1 . Fabricator Hacks . | . . . Repair Station Hacks 3 | . 3 . Scan Component 3 | . 3 . Recycling Unit Hacks . | . . . Scanalyzer . | . . . Garrison Access Hacks . | . . . Unauthorized Hacks . | . . . Terminals . | . . . Fabricators . | . . . Repair Stations . | . . . Recycling Units . | . . . Scanalyzers . | . . . Garrison Access . | . . . Data Cores Recovered . | . . . Used . | . . . Hacking Detections 6 | . 6 . Full Trace Events 2 | . 2 . Feedback Events . | . . . Feedback Blocked . | . . . Robot Schematics Acquired . | . . . Robots Built . | . . . Authchips . | . . . Time . | . . . Total Robot Build Rating . | . . . Part Schematics Acquired . | . . . Parts Built . | . . . Authchips . | . . . Time . | . . . Total Part Build Rating . | . . . Part Studies Acquired . | . . . Parts Repaired . | . . . Time . | . . . Parts Recycled . | . . . Recycled Matter . | . . . Retrieved Matter . | . . . Retrieved Components . | . . . Parts Scanalyzed . | . . . Part Schematics Acquired . | . . . Parts Damaged . | . . . Bothacking | -11 -10 -10 ------------ Run | Yrd Mat Min Used RIF Installer . | . . . Robots Hacked . | . . . Non-combat . | . . . Combat . | . . . Robot Hacks Applied . | . . . Relay Couplers Released . | . . . Fabnet Peak Effective % . | . . . Robots Rewired . | . . . Allies Hacked . | . . . Hacks Repelled . | . . . Allies | -11 -10 -10 -------- Run | Yrd Mat Min Total Allies . | . . . Largest Group . | . . . Highest-Rated Group . | . . . Highest-Rated Ally . | . . . Total Orders . | . . . Ally Attacks . | . . . Total Damage . | . . . Kills . | . . . Allies Corrupted . | . . . Allies Melted . | . . . Intel | -11 -10 -10 ------- Run | Yrd Mat Min Active Infowar (turns) 309 | 22 287 . Seismic 309 | 22 287 . Robot Analysis Total 1 | . 1 . Derelict Logs Recovered . | . . . Drone Launches . | . . . Drone Recoveries . | . . . Exploration | -11 -10 -10 ------------- Run | Yrd Mat Min Turns Passed 1509 | 122 1352 35 Spaces Moved 714 | 64 648 2 Core 7 | 7 . . Treads 566 | 57 509 . Legs 141 | . 139 2 Wheels . | . . . Hover . | . . . Flight . | . . . Fastest Speed 50 | 50 160 190 Average Speed 170 | 154 172 225 Slowest Speed 260 | 160 240 260 Overloaded Moves . | . . . Propulsion Burnouts . | . . . Robots Hopped . | . . . Potential Cave-ins 3 | . 3 . Cave-ins Triggered . | . . . Exploration Rate (%) 24 | 4 67 3 Regions Visited 2 Branch Regions 1 Pre-discovered Areas . | . . . Known Exits Taken . | . . . Unknown Exits Taken 2 | 1 1 . Scrap Searched . | . . . Spaces Dug . | . . . Terrain Destroyed 78 | . 78 . Melee . | . . . Projectile . | . . . AOE 78 | . 78 . Terrain Rammed . | . . . Walls Destroyed . | . . . Machines Disabled . | . . . Actions | -11 -10 -10 --------- Run | Yrd Mat Min Total 863 | 80 764 19 Wait 38 | 4 24 10 Move 712 | 63 647 2 Hop . | . . . Pick Up 14 | 4 10 . Fast Attach 9 | 7 2 . Attach 6 | . 6 . Detach 1 | . 1 . Swap 6 | . 6 . Drop 3 | . 3 . Fire 73 | 2 64 7 Melee . | . . . Ram . | . . . Kick . | . . . Crush 1 | . 1 . Escape Stasis . | . . . Rewire . | . . . Trap . | . . . Miscellaneous . | . . . Route ------- -11/Scrapyard -10/Materials (discovered 4 exits: [*Mat] / [*Min x2] / [*Sub]) -10/Mines History --------- Turn | Location | Event 20 | -11/Scrapyard | Discovered new exit (range 16) 123 | -11/Scrapyard | Entered Materials 315 | -10/Materials | Build established: Mutant 432 | -10/Materials | Discovered new exit (range 6) 703 | -10/Materials | Discovered new exit (range 8) 857 | -10/Materials | Discovered new exit (range 13) 865 | -10/Materials | Discovered new exit (range 10) 923 | -10/Materials | Derelicts attacked the area 1187 | -10/Materials | Core integrity fell below 50% 1244 | -10/Materials | Lost 4 parts (1p2n1w) 1475 | -10/Materials | Entered Mines 1492 | -10/Mines | Core integrity fell below 20% 1510 | -10/Mines | Destroyed by G-47 Trooper with Particle Gun Last Messages --------------- GOAL=ESCAPE 01477_ Critical hit (Burn: +37). 01487_ G-47 Trooper heat damages Aluminum Leg. 01488_ G-47 Trooper heat damages Lgt. Nuclear Core, Particle Gun, Imp. Heat Sink. 01494_ Overheating: System interference. 01494_ Sml. Laser temporarily disabled. 01495_ Overheating: System interference. 01495_ Particle Gun temporarily disabled. 01495_ G-47 Trooper overheating. 01496_ Overheating: Matter decay (-72). 01497_ G-47 Trooper heat short circuits Lgt. Nuclear Core. 01498_ Overheating: Sml. Laser damaged (-8). 01498_ G-47 Trooper heat spikes uncontrollably. 01499_ Overheating: Aluminum Leg damaged (-17). 01499_ Particle Gun destroyed. 01501_ Power failure, Ion Engine shutdown. 01503_ Aluminum Leg destroyed. 01507_ Sml. Laser destroyed. Map ----- +----------------------------------------------------+ | | | | | | | | | | | | | | | | | | | | | | | | | ????????????????????????????????????????? | | ????????????????????????????????????????? | | ????????????????????????????????????????? | | ????????????????????????????????????????? | | ????????????????????????????????????????? | | ????????????????????????????????????????? | | ????????????????????????????????????????? | | ????????????????????????????????????????? | | ????????????????????????????????????????? | | ???????????????#####????????????????????? | | ??????????????## ###??????????????????? | | ??????????????# ######?????????????? | | ??????????????# #?????????????? | | ??????????????# @ ###???????????????? | | ??????????????## ##?????????????????? | | ???????????????##gg ???????????????? | | ?????????????????g ######??????????????? | | ????????????????? ##???????????????????? | | ????????????????? #????????????????????? | | ????????????????? #????????????????????? | | ?????????????????$ #????????????????????? | | ?????????????????? ????????????????????? | | ?????????????????? #????????????????????? | | ?????????????????? #????????????????????? | | ?????????????????? #????????????????????? | | ?????????????????? ????????????????????? | | ??????????????????? ????????????????????? | | ????????????????????????????????????????? | | ????????????????????????????????????????? | | ????????????????????????????????????????? | | ????????????????????????????????????????? | | ????????????????????????????????????????? | | ????????????????????????????????????????? | | ????????????????????????????????????????? | | ????????????????????????????????????????? | | ????????????????????????????????????????? | | ????????????????????????????????????????? | | ????????????????????????????????????????? | +----------------------------------------------------+ Best States ------------- Heat Dissipation 25 Energy Generation 10 Energy Capacity 250 Matter Stores 300 Matter Capacity 300 Sight Range 16 Terrain Scan Density 10 Armor Coverage 150 Evasion (%) 40 Recoil Reduction 2 Item Schematics ----------------- None Robot Schematics ------------------ None Fabricated ------------ Nothing Repaired ---------- Nothing Studied --------- None Alien Tech Used ----------------- None Achievements -------------- None Challenges ------------ None Game ------ Seed RapidRiotExtrapolator Manual? 0 Play Time 00:18:27 Cumulative 28.7 hours Start 2025.11.22 @ 10:13:49 End 2025.11.22 @ 10:34:11 Sessions 1 Manual Loads 0 Difficulty Rogue Special Mode None Game No. 29 Rogue 29 Adventurer 0 Explorer 0 Win Type - Total 0 Types 0/0/0/0/0/0/0/0/0/0 Lore% 13 Gallery% 19 Achievement% 18 Wizard Run 0 Options --------- Layout 1 ASCII 0 Keyboard 0 Movement Arrows Keybinds 0 Fullscreen 2 Font 48/Smallcaps Map View 50x35 Zoom Use 0% Tactical HUD 1 Map Filters NONE Filters NONE Steam 1 RUN: 49af0d4d-6c3a-4100-ae09-782541e154bf